fUSD/lending_fUSD_20240129
["ID","MTS","AMOUNT","RATE_DAILY","PERIOD"]
[312953459,1706524214179,-2915.86657297,0.00021687,2]
[312953460,1706524214198,-1846.90635199,0.00021687,2]
[312953472,1706524231844,-611.97438854,0.00021686,2]
[312953473,1706524231857,-388.02561146,0.00021686,2]
[312953474,1706524231866,-500.97998137,0.00021686,2]
[312953475,1706524231876,-2401.44167149,0.00021687,2]
[312953476,1706524231885,-1719.20752037,0.00021687,2]
[312953477,1706524231894,-1066.66499551,0.00021687,2]
[312953478,1706524231903,-4270.59405528,0.00021687,2]
[312953479,1706524231913,-945.54354846,0.00021687,2]
[312953480,1706524231923,-499.99,0.00021687,2]
[312953481,1706524231932,-566.7718918,0.00021688,2]
[312953482,1706524231944,-1287.25840715,0.00021688,2]
[312953483,1706524231955,-771.45899541,0.00021688,2]
[312953484,1706524231965,-1308.8714321,0.00021688,2]
[312953485,1706524231977,-2667.68824583,0.00021688,2]
[312953486,1706524231993,-433.3649623,0.00021688,2]
[312953487,1706524232004,-298.09718034,0.00021688,2]
[312953488,1706524232014,-683.56959646,0.00021688,2]
[312953489,1706524232042,-549.416164,0.00021688,2]
[312953490,1706524232069,-2272.8,0.00021688,2]
[312953536,1706524236652,1537.78048216,0.00021554,2]
[312953537,1706524236676,604.53951784,0.00021554,2]
[312953538,1706524237753,-1137.66259642,0.00021688,2]
[312953539,1706524237763,-190.38606245,0.00021689,2]
[312953540,1706524238080,-1007.99999868,0.00021689,2]
[312953573,1706524241029,-579.92072339,0.00021689,2]
[312953574,1706524241040,-5319.89305552,0.00021689,2]
[312953575,1706524241082,-2392.99999999,0.00021689,2]
[312953576,1706524241093,-1362.3680281,0.00021689,2]
[312953577,1706524241109,-983.82216087,0.00021689,2]
[312953578,1706524241120,-1346.31370766,0.00021689,2]
[312953579,1706524241131,-509.73860691,0.00021689,2]
[312953580,1706524241143,-649.02,0.00021689,2]
[312953581,1706524241154,-455.63719547,0.00021689,2]
[312953582,1706524241166,-682.22899803,0.00021689,2]
[312953583,1706524241209,-5679.70462273,0.00021689,2]
[312953607,1706524242887,-411.34441301,0.00021689,2]
[312953608,1706524242898,-278.79969255,0.00021689,2]
[312953609,1706524242914,-1618.38420071,0.00021689,2]
[312953610,1706524243004,-331.24618229,0.00021689,2]
[312953611,1706524243015,-471.52649913,0.00021689,2]
[312953612,1706524243026,-276.96694999,0.00021689,2]
[312953613,1706524243084,-265.9835215,0.00021689,2]
[312953614,1706524243095,-290.5,0.00021689,2]
[312953631,1706524245829,-1000.0,0.00021688,2]
[312953632,1706524245838,-611.81494776,0.00021689,2]
[312953634,1706524245886,-2645.57653317,0.00021689,2]
[312953672,1706524247230,-800.0,0.00021689,2]
[312953673,1706524247242,-1061.85063911,0.00021689,2]
[312953674,1706524247265,-4439.28563776,0.00021689,2]
[312953675,1706524247287,-4917.37055185,0.00021689,2]
[312953676,1706524247298,-1014.94089967,0.00021689,2]
[312953677,1706524247310,-1499.11523399,0.00021689,2]
[312953678,1706524247321,-560.88456719,0.00021689,2]
[312953679,1706524247336,-1212.03991646,0.00021689,2]
[312953680,1706524247354,-3789.87877808,0.00021689,2]
[312953681,1706524247369,-465.67000015,0.00021689,2]
[312953682,1706524247380,-561.424,0.00021689,2]
[312953684,1706524260875,250.0,0.00021597,2]
[312953685,1706524261811,155.66498659,0.00021624,2]
[312953686,1706524268805,150.0,0.00020749,2]
[312953687,1706524269604,839.79549557,0.00021516,2]
[312953688,1706524269625,141.8017858,0.00021516,2]
[312953689,1706524274811,293.66474144,0.00022,3]
[312953690,1706524337334,150.0,0.00020749,2]
[312953691,1706524338406,150.0,0.00021297,2]
[312953692,1706524351914,372.21547964,0.00022,3]
[312953693,1706524371766,184.28280398,0.00021549,2]
[312953694,1706524390052,185.32,0.00021575,2]
[312953695,1706524401651,205.83,0.00021581,2]
[312953696,1706524405002,200.0,0.00021583,2]
[312953697,1706524405437,150.0,0.00020686,2]
[312953698,1706524406720,150.0,0.00021234,2]
[312953699,1706524414097,221.37,0.0002162,2]
[312953700,1706524424996,330.11413387,0.00022,3]
[312953701,1706524444539,206.0,0.00025947,8]
[312953702,1706524475579,261.39541022,0.00021612,2]
[312953703,1706524475601,205.85458978,0.00021612,2]
[312953704,1706524498299,276.56256574,0.00022,3]
[312953705,1706524502260,158.25487662,0.00021528,2]
[312953706,1706524505524,189.01,0.00021585,2]
[312953707,1706524526507,-1319.93470892,0.00021624,2]
[312953708,1706524526527,-1000.0,0.00021625,2]
[312953709,1706524526552,-158.25487651,0.00021626,2]
[312953710,1706524526572,-13041.77329193,0.00021627,2]
[312953711,1706524526595,-1239.21,0.00021628,2]
[312953712,1706524526615,-16561.68330206,0.00021628,2]
[312953713,1706524526636,-300.0,0.00021647,2]
[312953714,1706524526656,-150.0,0.00021647,2]
[312953715,1706524526677,-2500.0,0.00021649,2]
[312953716,1706524526697,-29053.0,0.00021686,2]
[312953717,1706524526716,-164.8499711,0.00021688,2]
[312953718,1706524526736,-3609.29384948,0.00021689,2]
[312953719,1706524564769,200.38,0.00021578,2]
[312953720,1706524572501,626.88,0.00021481,2]
[312953721,1706524574898,193.74466187,0.00021982,3]
[312953722,1706524588794,619.6205336,0.00021496,2]
[312953723,1706524588815,2000.0,0.00021496,2]
[312953724,1706524588847,2000.0,0.00021496,2]
[312953725,1706524588870,2000.0,0.00021496,2]
[312953726,1706524588891,511.4694664,0.00021496,2]
[312953728,1706524648088,154.69663611,0.00021982,3]
[312953729,1706524668726,2607.0,0.00021587,14]
[312953730,1706524681419,626.53,0.00019511,2]
[312953731,1706524687353,189.1199,0.00021587,2]
[312953732,1706524694906,196.37,0.00021585,2]
[312953733,1706524696601,200.0,0.0002162,2]
[312953734,1706524697146,156.62,0.00021424,2]
[312953735,1706524713535,119.8906336,0.00021333,2]
[312953736,1706524713561,2000.0,0.00021333,2]
[312953737,1706524713586,1387.5493664,0.00021333,2]
[312953738,1706524737739,-1000.0,0.00021643,2]
[312953739,1706524737761,-196.37,0.00021644,2]
[312953740,1706524737781,-3197.13386433,0.0002168,2]
[312953741,1706524737801,-489.299569,0.00021681,2]
[312953742,1706524737821,-13041.77329193,0.00021681,2]
[312953743,1706524737841,-40031.42327474,0.00021682,2]
[312953744,1706524752724,546.51884636,0.00021039,2]
[312953745,1706524776837,-1587.0,0.00021682,2]
[312953746,1706524797814,150.1,0.00021982,3]
[312953747,1706524804045,206.0,0.00020691,2]
[312953748,1706524804296,206.0,0.00025058,8]
[312953749,1706524827970,250.0,0.00021313,2]
[312953751,1706524874058,198.73766923,0.00021982,3]
[312953752,1706524948972,151.2504511,0.00021982,3]
[312953753,1706524959013,-510.0,0.000229,6]
[312953754,1706525002800,159.98,0.00017048,2]
[312953755,1706525023693,150.1,0.00021982,3]
[312953756,1706525026774,205.83,0.0002131,2]
[312953760,1706525041602,2000.0,0.0002131,2]
[312953761,1706525044486,207.0,0.00020691,2]
[312953762,1706525045596,308.33648603,0.00022999,10]
[312953763,1706525045625,308.33648606,0.00022999,10]
[312953764,1706525045662,308.33648603,0.00022999,10]
[312953765,1706525045694,308.33648603,0.00022999,10]
[312953766,1706525045767,308.33648603,0.00022999,10]
[312953767,1706525045823,308.33648603,0.00022999,10]
[312953768,1706525045887,308.33648603,0.00022999,10]
[312953769,1706525046508,308.33648603,0.00022999,10]
[312953770,1706525049979,546.70433366,0.000229,7]
[312953771,1706525050836,1700.0,0.000225,8]
[312953772,1706525052941,3500.0,0.000226,8]
[312953773,1706525054150,9107.96827264,0.00021288,7]
[312953774,1706525055283,5200.0,0.000227,8]
[312953775,1706525057076,1060.03,0.00021317,2]
[312953776,1706525057161,7000.0,0.000228,8]
[312953777,1706525059280,8700.0,0.000229,8]
[312953778,1706525063220,155.0,0.00022406,7]
[312953779,1706525069971,474.28243944,0.0002131,7]
[312953780,1706525076118,9107.96827264,0.00020819,7]
[312953781,1706525085205,172.33736872,0.00021915,7]
[312953782,1706525090138,9107.96827264,0.00020819,7]
[312953783,1706525100392,189.56222025,0.00021982,3]
[312953784,1706525104119,-400.0,0.000229,6]
[312953785,1706525108127,2710.57651048,0.00020819,7]
[312953786,1706525109428,344.57695732,0.00026,7]
[312953787,1706525132249,498.49,0.00021326,2]
[312953788,1706525135179,176.73,0.00021573,2]
[312953789,1706525135236,-150.0,0.00021677,2]
[312953790,1706525135261,-1139.29018939,0.00021677,2]
[312953791,1706525135290,-279.94615861,0.00021677,2]
[312953792,1706525135315,-1000.0,0.00021677,2]
[312953793,1706525135341,-155.0,0.00021677,2]
[312953794,1706525135365,-497.03416916,0.00021677,2]
[312953795,1706525135390,-364.91086468,0.0002168,2]
[312953796,1706525135415,-1052.66597639,0.00021681,2]
[312953797,1706525135440,-10986.15264177,0.00021682,2]
[312953798,1706525136508,606.57,0.00019494,2]
[312953799,1706525143972,5925.3619,0.0002158,14]
[312953800,1706525157500,1737.82124907,0.00021476,2]
[312953801,1706525173575,160.73868093,0.00021982,3]
[312953802,1706525176732,207.0,0.00026865,8]
[312953803,1706525180802,1305.60798235,0.00021252,2]
[312953804,1706525181050,-176.73,0.00021632,2]
[312953805,1706525181075,-2055.62065016,0.00021682,2]
[312953806,1706525181099,-4281.30291457,0.00021683,2]
[312953807,1706525181123,-10546.99948315,0.00021683,2]
[312953808,1706525181147,-9478.63351705,0.00021689,2]
[312953809,1706525181172,-808.3198501,0.00021689,2]
[312953810,1706525181197,-2712.39358497,0.00021689,2]
[312953811,1706525181232,1305.60798235,0.00021427,2]
[312953812,1706525194303,278.10084856,0.00020724,2]
[312953813,1706525195112,2046.8338596,0.00021915,4]
[312953814,1706525196497,23900.0,0.00021345,2]
[312953815,1706525206794,2337.25095758,0.00021038,2]
[312953816,1706525208849,856.49,0.0002131,2]
[312953817,1706525240465,400.0,0.000225,8]
[312953818,1706525242562,800.0,0.000226,8]
[312953819,1706525244685,1300.0,0.000227,8]
[312953820,1706525246832,1700.0,0.000228,8]
[312953821,1706525248934,2200.0,0.000229,8]
[312953822,1706525249783,893.5664719,0.00021982,3]
[312953823,1706525303163,990.0,0.00023,7]
[312953824,1706525303710,990.0,0.00023,7]
[312953825,1706525303855,990.0,0.00023,7]
[312953826,1706525303940,990.0,0.00023,7]
[312953827,1706525304180,990.0,0.00023,7]
[312953828,1706525304453,193.26732953,0.00023,7]
[312953829,1706525308933,500.0,0.00021207,2]
[312953830,1706525323421,181.41,0.000212,2]
[312953831,1706525328071,646.98924464,0.00021973,3]
[312953832,1706525352109,167.75,0.00021196,2]
[312953833,1706525377596,299.99,0.00021691,7]
[312953834,1706525404928,559.02225429,0.00021973,3]
[312953855,1706525431981,-381.06673852,0.0002167,2]
[312953856,1706525431993,-1737.50061937,0.0002167,2]
[312953857,1706525432005,-612.90951479,0.0002167,2]
[312953858,1706525432016,-641.99543764,0.0002167,2]
[312953859,1706525432108,-260.06782883,0.0002167,2]
[312953860,1706525432117,-1856.49462103,0.00021671,2]
[312953861,1706525432126,-500.0,0.00021671,2]
[312953862,1706525432136,-218.45729164,0.00021671,2]
[312953863,1706525432145,-1139.29018939,0.00021672,2]
[312953864,1706525432155,-3050.18561702,0.00021672,2]
[312953865,1706525432165,-605.28239917,0.00021673,2]
[312953866,1706525432177,-365.01711867,0.00021673,2]
[312953867,1706525432187,-419.05803649,0.00021673,2]
[312953868,1706525432197,-300.0,0.00021682,2]
[312953869,1706525432206,-150.0,0.00021682,2]
[312953870,1706525432216,-3089.39489298,0.00021683,2]
[312953871,1706525432226,-9106.70399151,0.00021685,2]
[312953872,1706525432236,-230.26204204,0.00021687,2]
[312953873,1706525432246,-3384.99154798,0.00021689,2]
[312953874,1706525432256,-4118.73834426,0.00021689,2]
[312953875,1706525432265,-176.73,0.00021691,2]
[312953876,1706525432275,-153.12,0.00021703,2]
[312953877,1706525432284,-176.73,0.0002175,2]
[312953878,1706525432297,-606.57,0.00021758,2]
[312953879,1706525432306,-1547.72668293,0.000218,2]
[312953880,1706525432316,-176.73,0.00021809,2]
[312953881,1706525432326,-989.8679,0.00021818,2]
[312953882,1706525432335,-5404.86,0.00021847,2]
[312953883,1706525432345,-176.73,0.00021868,2]
[312953884,1706525432354,-234.29053346,0.000219,2]
[312953885,1706525432364,-212.18820546,0.00021915,2]
[312953886,1706525432375,-155.26893206,0.00021915,2]
[312953887,1706525432385,-400.0,0.00021915,2]
[312953888,1706525432394,-504.38788005,0.00021915,2]
[312953889,1706525432403,-551.29405049,0.00021915,2]
[312953890,1706525432412,-699.19928448,0.00021915,2]
[312953891,1706525432422,-1718.76344717,0.00021915,2]
[312953892,1706525432431,-4706.9627137,0.00021915,2]
[312953893,1706525432441,-4623.87518628,0.00021915,2]
[312953894,1706525432451,-460.51233359,0.00021915,2]
[312953895,1706525432461,-985.353,0.00021915,2]
[312953896,1706525432470,-1000.0,0.00021915,2]
[312953897,1706525432480,-232.58522559,0.00021915,2]
[312953898,1706525432489,-1192.04708021,0.00021915,2]
[312953899,1706525432498,-921.02248803,0.00021915,2]
[312953900,1706525432508,-250.44389232,0.00021915,2]
[312953901,1706525432517,-699.24103246,0.00021915,2]
[312953902,1706525432527,-2143.20144114,0.00021915,2]
[312953903,1706525432537,-155.00042367,0.00021915,2]
[312953904,1706525432546,-276.13492421,0.00021915,2]
[312953905,1706525432556,-309.85750688,0.00021915,2]
[312953906,1706525432565,-166.85381922,0.00021915,2]
[312953907,1706525432575,-164.27753004,0.00021915,2]
[312953908,1706525432585,-301.89135144,0.00021915,2]
[312953909,1706525432595,-181.87084846,0.00021915,2]
[312953910,1706525432604,-1054.69644461,0.00021916,2]
[312953911,1706525432824,-492.6491193,0.00021917,2]
[312953912,1706525432834,-28223.85174305,0.00021917,2]
[312953913,1706525432844,-10000.0,0.00021918,2]
[312953914,1706525432853,-250.0,0.00021918,2]
[312953915,1706525432862,-216.72,0.00021918,2]
[312953916,1706525432875,-19449.15,0.00021918,2]
[312953917,1706525432885,-176.73,0.00021928,2]
[312953918,1706525432894,-422.36522636,0.00021982,2]
[312953919,1706525432903,-176.73,0.00021987,2]
[312953920,1706525432913,-155.95237542,0.00022,2]
[312953921,1706525432922,-151.74353677,0.00022,2]
[312953922,1706525432931,-176.69,0.00022,2]
[312953923,1706525432940,-500.0,0.00022,2]
[312953924,1706525432952,-150.0,0.00022,2]
[312953925,1706525432961,-150.0,0.00022,2]
[312953926,1706525432970,-150.0,0.00022,2]
[312953927,1706525432979,-1043.56158327,0.00022,2]
[312953928,1706525432988,-943.25533025,0.00022,2]
[312953929,1706525432997,-2786.87439033,0.00022,2]
[312953930,1706525433006,-176.73,0.00022046,2]
[312953931,1706525433015,-598.59876343,0.00022058,2]
[312953932,1706525433024,-176.73,0.00022105,2]
[312953933,1706525433033,-1328.53346679,0.00022145,2]
[312953934,1706525433042,-176.73,0.00022164,2]
[312953935,1706525433051,-1305.60798236,0.00022171,2]
[312953936,1706525433060,-625.0,0.00022213,2]
[312953937,1706525433070,-176.73,0.00022224,2]
[312953938,1706525433080,-245.50069736,0.00022281,2]
[312953939,1706525433088,-279.21898168,0.00022282,2]
[312953940,1706525433097,-220.86560651,0.00022282,2]
[312953941,1706525433106,-176.73,0.00022283,2]
[312953942,1706525433115,-176.73,0.00022342,2]
[312953943,1706525433124,-176.73,0.00022401,2]
[312953944,1706525433133,-197.31224303,0.00022406,2]
[312953945,1706525433142,-158.49900803,0.00022407,2]
[312953946,1706525433151,-2197.44723987,0.00022407,2]
[312953947,1706525433160,-155.40392471,0.00022408,2]
[312953948,1706525433169,-760.31642859,0.00022408,2]
[312953949,1706525433178,-338.17308084,0.00022408,2]
[312953950,1706525433188,-318.96286189,0.00022408,2]
[312953951,1706525433197,-156.07370626,0.00022408,2]
[312953952,1706525433206,-155.29281203,0.00022408,2]
[312953953,1706525433215,-314.84506733,0.00022408,2]
[312953954,1706525433225,-155.0,0.00022408,2]
[312953955,1706525433234,-160.85063885,0.00022408,2]
[312953956,1706525433243,-155.0,0.00022409,2]
[312953957,1706525433252,-200.0,0.00022409,2]
[312953958,1706525433261,-543.89474712,0.00022409,2]
[312953959,1706525433270,-176.73,0.0002246,2]
[312953960,1706525433279,-12330.67385886,0.000225,2]
[312953961,1706525433288,-158.25487651,0.00022508,2]
[312953962,1706525433297,-176.73,0.00022519,2]
[312953963,1706525433306,-3512.0,0.00022542,2]
[312953964,1706525433315,-176.69,0.00022548,2]
[312953965,1706525433324,-500.0,0.00022548,2]
[312953966,1706525433333,-150.77298008,0.00022548,2]
[312953967,1706525433342,-150.0,0.00022548,2]
[312953968,1706525433351,-176.73,0.00022579,2]
[312953969,1706525433360,-158.25487651,0.00022606,2]
[312953970,1706525433369,-176.73,0.00022638,2]
[312953971,1706525433378,-495.70868768,0.00022669,2]
[312953972,1706525433387,-176.73,0.00022697,2]
[312953973,1706525433396,-8846.2584,0.000227,2]
[312953974,1706525433404,-15608.3378,0.000227,2]
[312953975,1706525433413,-1983.6637,0.000227,2]
[312953976,1706525433422,-158.25487651,0.00022704,2]
[312953977,1706525433431,-1702.762,0.00022733,2]
[312953978,1706525433441,-2323.705,0.00022733,2]
[312953979,1706525433450,-4223.477,0.00022733,2]
[312953980,1706525433459,-3665.809,0.00022733,2]
[312953981,1706525433468,-681.823,0.00022733,2]
[312953982,1706525433477,-1051.425,0.00022733,2]
[312953983,1706525433486,-325.89,0.00022733,2]
[312953984,1706525433494,-157.21616047,0.000228,2]
[312953985,1706525433504,-21638.6193,0.000228,2]
[312953986,1706525433513,-2610.6338,0.000228,2]
[312953987,1706525433522,-1000.0,0.000228,2]
[312953988,1706525433530,-18827.0499,0.000228,2]
[312953989,1706525433540,-158.25487651,0.00022802,2]
[312953990,1706525433549,-614.29981108,0.00022898,2]
[312953991,1706525433558,-260.70555078,0.00022898,2]
[312953992,1706525433567,-3035.83487903,0.00022898,2]
[312953993,1706525433580,-289.54850282,0.00022898,2]
[312953994,1706525433589,-526.22979665,0.00022898,2]
[312953995,1706525433598,-229.66689618,0.00022898,2]
[312953996,1706525433607,-1062.99279892,0.00022898,2]
[312953997,1706525433616,-162.10429849,0.00022898,2]
[312953998,1706525433626,-1857.92137233,0.00022899,2]
[312953999,1706525433634,-98255.21310827,0.000229,2]
[312954000,1706525433643,-6462.8619,0.000229,2]
[312954001,1706525433652,-2935.36503038,0.000229,2]
[312954002,1706525433661,-158.25487651,0.000229,2]
[312954003,1706525433670,-5000.0,0.000229,2]
[312954004,1706525433680,-168.32412907,0.000229,2]
[312954005,1706525433689,-156.9376613,0.000229,2]
[312954006,1706525433698,-152.73124411,0.000229,2]
[312954007,1706525433708,-1360.5687902,0.000229,6]
[312954008,1706525433717,-760.82137486,0.000229,2]
[312954009,1706525433727,-719.49431856,0.000229,2]
[312954010,1706525433737,-1045.2167084,0.000229,2]
[312954011,1706525433746,-987.62126846,0.000229,2]
[312954012,1706525433756,-1060.03,0.00022961,2]
[312954013,1706525433765,-207.0,0.00022967,2]
[312954014,1706525433774,-181.0,0.00022991,2]
[312954015,1706525433784,-258.0,0.00022991,2]
[312954016,1706525433794,-504.41543892,0.00022997,2]
[312954017,1706525433803,-160.21192525,0.00022997,2]
[312954018,1706525433812,-663.51910671,0.00022997,2]
[312954019,1706525433821,-500.83592251,0.00022997,2]
[312954020,1706525433831,-253.96304871,0.00022997,2]
[312954021,1706525433840,-336.90154587,0.00022997,2]
[312954022,1706525433850,-379.98844404,0.00022997,2]
[312954023,1706525433859,-2324.0,0.00022997,2]
[312954024,1706525433870,-247.03342612,0.00022998,2]
[312954025,1706525433879,-13259.3862435,0.00022998,2]
[312954026,1706525433889,-825.27406002,0.00022999,2]
[312954027,1706525433898,-34567.64456644,0.00023,2]
[312954028,1706525433913,-965.17012946,0.00023,2]
[312954029,1706525433933,-257.11704311,0.00023,2]
[312954030,1706525433946,-2224.53765689,0.00023,2]
[312954031,1706525434146,-876.46031176,0.00023,2]
[312954032,1706525434156,-1609.29824555,0.00023,2]
[312954033,1706525434182,-477.94031693,0.00023,2]
[312954034,1706525434194,-1076.31996767,0.00023,2]
[312954035,1706525434206,-661.68277074,0.00023,2]
[312954036,1706525434218,-500.61671431,0.00023,2]
[312954037,1706525434242,-1922.63282376,0.00023,2]
[312954038,1706525434254,-2215.7,0.00023,2]
[312954039,1706525434265,-2378.59324902,0.00023,2]
[312954040,1706525434296,-1959.3,0.00023,2]
[312954041,1706525434308,-940.9021208,0.00023,2]
[312954042,1706525434324,-21133.73197343,0.00023,2]
[312954053,1706525438027,-359.45100026,0.00023,2]
[312954054,1706525438055,-545.36895339,0.00023,2]
[312954055,1706525438067,-573.29099192,0.00023,2]
[312954056,1706525438114,-1130.64844027,0.00023,2]
[312954057,1706525438126,-1276.09,0.00023,2]
[312954058,1706525438138,-5907.41721,0.00023,2]
[312954059,1706525438149,-1843.58817517,0.00023,2]
[312954060,1706525438161,-2546.38577049,0.00023,2]
[312954061,1706525438288,-303.32936682,0.00023,2]
[312954062,1706525438300,-18005.23623429,0.00023,2]
[312954079,1706525441411,354.53,0.00023672,10]
[312954080,1706525441603,354.53,0.00024252,10]
[312954081,1706525441810,354.53,0.00024832,10]
[312954082,1706525442005,354.53,0.00025412,10]
[312954083,1706525442215,354.53,0.00025992,10]
[312954088,1706525442716,-8883.99999996,0.00023,2]
[312954090,1706525442773,-2719.32701373,0.00023,2]
[312954097,1706525443380,-496.57181052,0.00023,2]
[312954099,1706525443392,-935.66335269,0.00023,2]
[312954102,1706525443403,-40142.03643245,0.00023,2]
[312954104,1706525443414,-1862.61449315,0.00023,2]
[312954105,1706525443470,-540.86156772,0.00023,2]
[312954106,1706525443492,-2627.76022133,0.00023,2]
[312954107,1706525443504,-4123.93676626,0.00023,2]
[312954108,1706525443514,-327.71451975,0.00023,2]
[312954109,1706525443525,-403.96999975,0.00023,2]
[312954110,1706525443537,-903.87469806,0.00023,2]
[312954111,1706525443548,-2612.20110424,0.00023,2]
[312954112,1706525443559,-426.96508485,0.00023,2]
[312954122,1706525446021,-745.48547254,0.00022798,2]
[312954123,1706525446030,-1208.96452746,0.00022799,2]
[312954124,1706525446045,-42183.31087254,0.00022799,2]
[312954125,1706525446054,-1819.86711985,0.00022999,2]
[312954126,1706525446063,-12330.67385886,0.00022999,2]
[312954127,1706525446072,-526.56326189,0.00022999,2]
[312954128,1706525446082,-486.43818687,0.00022999,2]
[312954129,1706525446091,-154532.73269354,0.00023,2]
[312954130,1706525446113,-488.82341599,0.00023,2]
[312954131,1706525446137,-450.89036991,0.00023,2]
[312954132,1706525446148,-358.38032181,0.00023,2]
[312954133,1706525446159,-2060.9889826,0.00023,2]
[312954134,1706525446355,-22753.60825509,0.00023,2]
[312954135,1706525446537,-9400.78171928,0.00023,2]
[312954137,1706525479050,1512.81213373,0.00021,2]
[312954138,1706525479316,1068.03528584,0.00021,2]
[312954139,1706525481256,444.77684789,9e-05,2]
[312954140,1706525481281,495.64038842,9e-05,2]
[312954141,1706525494415,661.11586812,0.0002162,2]
[312954143,1706525496806,356.05587719,0.00011,2]
[312954144,1706525496831,1512.81213373,0.00011,2]
[312954145,1706525496857,161.17036818,0.00011,2]
[312954147,1706525512203,2208.80328565,0.00021,4]
[312954149,1706525520628,905.3968965,0.000155,2]
[312954151,1706525526738,4488.85437115,0.000199,3]
[312954152,1706525527381,207.0,0.00026193,8]
[312954153,1706525572749,1019.89380475,0.00015,14]
[312954155,1706525589475,150.24489274,0.00027,7]
[312954156,1706525611361,155.33854193,0.00015,2]
[312954157,1706525611390,155.4056809,0.00020697,2]
[312954158,1706525630039,512.81213373,0.00021496,2]
[312954159,1706525630063,88.38786627,0.00021496,2]
[312954160,1706525635428,400.0,0.0002,2]
[312954161,1706525644424,334.26139543,0.00029,30]
[312954162,1706525646623,311.97223792,0.00029,30]
[312954163,1706525648238,578.9,0.00019614,2]
[312954164,1706525658986,202.499379,0.00021527,2]
[312954166,1706525686741,7888.2,0.00021516,2]
[312954171,1706525763231,1184.89,0.00021506,2]
[312954172,1706525776792,334.07,0.00021506,2]
[312954178,1706525863261,1072.096015,0.00021519,2]
[312954180,1706525884188,207.0,0.00020967,2]
[312954181,1706525884945,207.0,0.00025559,8]
[312954182,1706525917615,990.0,0.00023,7]
[312954183,1706525917872,990.0,0.00023,7]
[312954184,1706525918145,759.069279,0.00023,7]
[312954185,1706525920297,750.0,0.00021526,2]
[312954187,1706525956965,200.0,0.00021517,2]
[312954188,1706525985029,1666.48,0.00021517,2]
[312954189,1706525995412,250.0,0.00021524,2]
[312954190,1706526048825,299.99,0.00021903,7]
[312954191,1706526055738,-199.01298709,0.00021621,2]
[312954192,1706526057284,-150.0,0.00021621,2]
[312954193,1706526057796,-150.0,0.00021621,2]
[312954194,1706526064920,-150.0,0.00021621,2]
[312954195,1706526065523,-150.0,0.00021621,2]
[312954196,1706526070222,-150.0,0.00021621,2]
[312954197,1706526079473,1040.1,0.00021534,2]
[312954198,1706526082287,150.38,0.00021534,2]
[312954199,1706526082364,519.04,0.00021534,2]
[312954200,1706526110948,-21.28653075,0.00021621,2]
[312954201,1706526110969,-128.71346925,0.00021621,2]
[312954202,1706526111367,-150.0,0.00021621,2]
[312954203,1706526114389,-150.0,0.00021621,2]
[312954204,1706526115264,-150.0,0.00021621,2]
[312954205,1706526115809,-150.0,0.00021621,2]
[312954206,1706526117210,-150.0,0.00021621,2]
[312954207,1706526118742,-150.0,0.00021621,2]
[312954208,1706526119288,-150.0,0.00021621,2]
[312954209,1706526119683,-150.0,0.00021621,2]
[312954210,1706526120611,-150.0,0.00021621,2]
[312954211,1706526121406,-150.0,0.00021621,2]
[312954212,1706526122088,-150.0,0.00021621,2]
[312954213,1706526123012,-150.0,0.00021621,2]
[312954214,1706526123064,350.49681221,0.00021534,2]
[312954215,1706526123622,-150.0,0.00021621,2]
[312954216,1706526124431,-150.0,0.00021621,2]
[312954217,1706526125180,-150.0,0.00021621,2]